[Event "Late-Titled-Tuesday-Blitz-April-23-2024"]
[Site "Chess.com"]
[Date "2024.04.23"]
[Round "7"]
[White "ChessSwole"]
[Black "Cambek64"]
[Result "0-1"]
[WhiteElo "2686"]
[BlackElo "2537"]
[TimeControl "180+1"]
[EndTime "15:18:22 PDT"]
[Termination "Cambek64 won by resignation"]

1. d4 {[%clk 0:03:00.9]} 1... c5 {[%clk 0:02:53.2]} 2. d5 {[%clk 0:03:00.5]}
2... e5 {[%clk 0:02:52.6]} 3. Nc3 {[%clk 0:03:01]} 3... d6 {[%clk 0:02:52.8]} 4.
e4 {[%clk 0:03:00.9]} 4... Nf6 {[%clk 0:02:53.1]} 5. Nf3 {[%clk 0:03:00.9]} 5...
Be7 {[%clk 0:02:53.6]} 6. g3 {[%clk 0:02:58.6]} 6... O-O {[%clk 0:02:53.3]} 7.
Bg2 {[%clk 0:02:59.2]} 7... Na6 {[%clk 0:02:53]} 8. O-O {[%clk 0:02:59.2]} 8...
Nc7 {[%clk 0:02:53.6]} 9. a4 {[%clk 0:02:57.6]} 9... b6 {[%clk 0:02:53.7]} 10.
Ne1 {[%clk 0:02:51.4]} 10... a6 {[%clk 0:02:54.1]} 11. f4 {[%clk 0:02:49.5]}
11... Nd7 {[%clk 0:02:53.4]} 12. Nd3 {[%clk 0:02:48.4]} 12... Bf6 {[%clk
0:02:53.9]} 13. g4 {[%clk 0:02:32.6]} 13... exf4 {[%clk 0:02:52.9]} 14. Bxf4
{[%clk 0:02:32.4]} 14... Qe7 {[%clk 0:02:51.3]} 15. Qd2 {[%clk 0:02:29.3]} 15...
Be5 {[%clk 0:02:49.6]} 16. Nxe5 {[%clk 0:02:12.3]} 16... Nxe5 {[%clk 0:02:47.2]}
17. h3 {[%clk 0:02:04.8]} 17... Bd7 {[%clk 0:02:46.6]} 18. Ne2 {[%clk
0:01:56.3]} 18... b5 {[%clk 0:02:46.1]} 19. a5 {[%clk 0:01:54.9]} 19... b4
{[%clk 0:02:45.3]} 20. Ng3 {[%clk 0:01:51.9]} 20... f6 {[%clk 0:02:31]} 21. Nh5
{[%clk 0:01:49.6]} 21... Bb5 {[%clk 0:02:18.6]} 22. Rf2 {[%clk 0:01:47.6]} 22...
Rae8 {[%clk 0:02:14.1]} 23. b3 {[%clk 0:01:39.2]} 23... Rd8 {[%clk 0:02:04.8]}
24. Ng3 {[%clk 0:01:32.4]} 24... Bd7 {[%clk 0:02:03]} 25. Raf1 {[%clk
0:01:28.3]} 25... Nb5 {[%clk 0:02:02.3]} 26. g5 {[%clk 0:01:26.9]} 26... Nd4
{[%clk 0:01:57.7]} 27. Nh5 {[%clk 0:01:23.4]} 27... f5 {[%clk 0:01:54.6]} 28.
Be3 {[%clk 0:00:54.2]} 28... fxe4 {[%clk 0:01:51]} 29. Bxd4 {[%clk 0:00:39.8]}
29... cxd4 {[%clk 0:01:50.3]} 30. Rxf8+ {[%clk 0:00:35.5]} 30... Rxf8 {[%clk
0:01:48.6]} 31. Rxf8+ {[%clk 0:00:36.4]} 31... Kxf8 {[%clk 0:01:39.9]} 32. Bxe4
{[%clk 0:00:25]} 32... Bxh3 {[%clk 0:01:20.2]} 33. Kh2 {[%clk 0:00:17.8]} 33...
Bg4 {[%clk 0:01:13.8]} 34. Nf4 {[%clk 0:00:14.8]} 34... Kg8 {[%clk 0:01:04]} 35.
Ng2 {[%clk 0:00:11.7]} 35... Bf3 {[%clk 0:00:59.7]} 36. Qxd4 {[%clk 0:00:11.2]}
36... Qxg5 {[%clk 0:00:58.5]} 37. Qe3 {[%clk 0:00:08.5]} 37... Ng4+ {[%clk
0:00:57.3]} 0-1

[Event "Late-Titled-Tuesday-Blitz-April-23-2024"]
[Site "Chess.com"]
[Date "2024.04.23"]
[Round "7"]
[White "BardArtem"]
[Black "JG-17"]
[Result "0-1"]
[WhiteElo "2785"]
[BlackElo "2556"]
[TimeControl "180+1"]
[EndTime "15:18:23 PDT"]
[Termination "JG-17 won on time"]

1. e4 {[%clk 0:03:00.9]} 1... c5 {[%clk 0:03:00]} 2. Nf3 {[%clk 0:02:58.2]} 2...
d6 {[%clk 0:03:00.6]} 3. Nc3 {[%clk 0:02:57.4]} 3... Nf6 {[%clk 0:03:00.9]} 4.
e5 {[%clk 0:02:57.5]} 4... dxe5 {[%clk 0:03:01.2]} 5. Nxe5 {[%clk 0:02:58.4]}
5... a6 {[%clk 0:03:01.3]} 6. g3 {[%clk 0:02:58.2]} 6... Qc7 {[%clk 0:03:00]} 7.
d4 {[%clk 0:02:56.3]} 7... e6 {[%clk 0:02:53.6]} 8. Bf4 {[%clk 0:02:29.3]} 8...
Bd6 {[%clk 0:02:52.3]} 9. Bg2 {[%clk 0:02:24.6]} 9... O-O {[%clk 0:02:51]} 10.
O-O {[%clk 0:02:18.6]} 10... Nbd7 {[%clk 0:02:50.2]} 11. Re1 {[%clk 0:02:08.4]}
11... Rd8 {[%clk 0:02:38.1]} 12. dxc5 {[%clk 0:01:43.4]} 12... Bxe5 {[%clk
0:02:27.1]} 13. Rxe5 {[%clk 0:01:14.8]} 13... Nxe5 {[%clk 0:02:26.1]} 14. Qe2
{[%clk 0:01:14.6]} 14... Nfd7 {[%clk 0:02:17.2]} 15. Ne4 {[%clk 0:00:39.6]}
15... f6 {[%clk 0:02:10.9]} 16. Rd1 {[%clk 0:00:34.7]} 16... Rf8 {[%clk
0:01:49.7]} 17. b4 {[%clk 0:00:28.2]} 17... a5 {[%clk 0:01:49.2]} 18. a3 {[%clk
0:00:25.5]} 18... axb4 {[%clk 0:01:46.6]} 19. axb4 {[%clk 0:00:26.4]} 19... Ra2
{[%clk 0:01:37.3]} 20. Nc3 {[%clk 0:00:24]} 20... Rb2 {[%clk 0:01:34.5]} 21. Nb5
{[%clk 0:00:22.7]} 21... Qb8 {[%clk 0:01:28.8]} 22. Nd4 {[%clk 0:00:17.3]} 22...
Rxb4 {[%clk 0:01:22.2]} 23. Nxe6 {[%clk 0:00:15.9]} 23... Re8 {[%clk 0:01:22.8]}
24. Bd5 {[%clk 0:00:15.5]} 24... Kh8 {[%clk 0:01:23.2]} 25. Qh5 {[%clk
0:00:13.3]} 25... Re7 {[%clk 0:01:03.4]} 26. c3 {[%clk 0:00:07.4]} 26... Rb2
{[%clk 0:01:00.9]} 27. Kg2 {[%clk 0:00:06.1]} 27... Qa7 {[%clk 0:00:54.7]} 28.
Be3 {[%clk 0:00:04.7]} 28... Qa4 {[%clk 0:00:46.2]} 29. Nf4 {[%clk 0:00:04.4]}
29... Nf8 {[%clk 0:00:41]} 30. Re1 {[%clk 0:00:01.6]} 30... Qe8 {[%clk
0:00:41.3]} 0-1

[Event "Late-Titled-Tuesday-Blitz-April-23-2024"]
[Site "Chess.com"]
[Date "2024.04.23"]
[Round "7"]
[White "Naruna_Chan"]
[Black "aranibos"]
[Result "1-0"]
[WhiteElo "2433"]
[BlackElo "2255"]
[TimeControl "180+1"]
[EndTime "15:18:32 PDT"]
[Termination "Naruna_Chan won by resignation"]

1. e4 {[%clk 0:03:00.9]} 1... c5 {[%clk 0:02:59.7]} 2. c3 {[%clk 0:02:58.7]}
2... d5 {[%clk 0:02:58.8]} 3. exd5 {[%clk 0:02:58.9]} 3... Qxd5 {[%clk
0:02:59.3]} 4. d4 {[%clk 0:02:59.4]} 4... cxd4 {[%clk 0:02:59.2]} 5. Nf3 {[%clk
0:02:58]} 5... Nf6 {[%clk 0:02:58.7]} 6. cxd4 {[%clk 0:02:56.5]} 6... Nc6 {[%clk
0:02:57.2]} 7. Nc3 {[%clk 0:02:56.2]} 7... Qa5 {[%clk 0:02:57]} 8. Bb5 {[%clk
0:02:47.4]} 8... Bd7 {[%clk 0:02:55.2]} 9. O-O {[%clk 0:02:45.3]} 9... e6 {[%clk
0:02:54]} 10. d5 {[%clk 0:02:37.2]} 10... exd5 {[%clk 0:02:37.5]} 11. Re1+
{[%clk 0:02:31.9]} 11... Be7 {[%clk 0:02:34.3]} 12. Qe2 {[%clk 0:02:25.3]} 12...
Qd8 {[%clk 0:02:29.5]} 13. Bg5 {[%clk 0:02:19.2]} 13... Kf8 {[%clk 0:02:28.6]}
14. Bxf6 {[%clk 0:02:02.6]} 14... Bxf6 {[%clk 0:02:28.7]} 15. Nxd5 {[%clk
0:02:00.7]} 15... Nd4 {[%clk 0:02:15.7]} 16. Nxd4 {[%clk 0:01:56.4]} 16... Bxd4
{[%clk 0:02:16.3]} 17. Bxd7 {[%clk 0:01:26]} 17... Qxd7 {[%clk 0:02:14.6]} 18.
Rad1 {[%clk 0:01:12.6]} 18... Bc5 {[%clk 0:01:38.9]} 19. Nb6 {[%clk 0:01:07.9]}
19... Qxd1 {[%clk 0:01:35.4]} 20. Rxd1 {[%clk 0:01:01.6]} 20... Bxb6 {[%clk
0:01:13.6]} 21. Qe4 {[%clk 0:00:53.5]} 21... Re8 {[%clk 0:01:01.5]} 22. Qxb7
{[%clk 0:00:45.6]} 22... g6 {[%clk 0:01:02.1]} 23. h3 {[%clk 0:00:34.9]} 23...
Kg7 {[%clk 0:01:02.4]} 24. Rd2 {[%clk 0:00:27.2]} 24... Rhf8 {[%clk 0:01:02.3]}
25. g3 {[%clk 0:00:25.6]} 25... Re6 {[%clk 0:00:59.2]} 26. Kg2 {[%clk
0:00:24.4]} 26... Rfe8 {[%clk 0:00:58.9]} 27. Rd7 {[%clk 0:00:21.6]} 27... Rf6
{[%clk 0:00:58.9]} 28. f4 {[%clk 0:00:21.1]} 28... Re2+ {[%clk 0:00:58.6]} 29.
Kf3 {[%clk 0:00:16.1]} 29... Rf2+ {[%clk 0:00:58.3]} 30. Kg4 {[%clk 0:00:13.7]}
30... h5+ {[%clk 0:00:57.5]} 31. Kh4 {[%clk 0:00:14.1]} 31... Rxb2 {[%clk
0:00:57.8]} 32. Qd5 {[%clk 0:00:08.7]} 32... Rxf4+ {[%clk 0:00:56.8]} 33. gxf4
{[%clk 0:00:07.5]} 33... Bf2+ {[%clk 0:00:56.6]} 34. Kg5 {[%clk 0:00:07.4]}
34... Bh4+ {[%clk 0:00:44.3]} 35. Kxh4 {[%clk 0:00:06.7]} 35... g5+ {[%clk
0:00:45]} 36. Qxg5+ {[%clk 0:00:06.2]} 36... Kf8 {[%clk 0:00:44.9]} 37. Qe7+
{[%clk 0:00:06.1]} 1-0

[Event "Late-Titled-Tuesday-Blitz-April-23-2024"]
[Site "Chess.com"]
[Date "2024.04.23"]
[Round "7"]
[White "Artem_Koval"]
[Black "rezamahdavi2008"]
[Result "0-1"]
[WhiteElo "2575"]
[BlackElo "2917"]
[TimeControl "180+1"]
[EndTime "15:18:35 PDT"]
[Termination "rezamahdavi2008 won on time"]

1. d4 {[%clk 0:03:00.9]} 1... Nf6 {[%clk 0:02:58.1]} 2. Nf3 {[%clk 0:03:00.9]}
2... b6 {[%clk 0:02:58.6]} 3. Bf4 {[%clk 0:03:00.3]} 3... Bb7 {[%clk 0:02:58.1]}
4. e3 {[%clk 0:03:00.9]} 4... Nh5 {[%clk 0:02:57.9]} 5. Bg5 {[%clk 0:02:59.2]}
5... h6 {[%clk 0:02:49.7]} 6. Bh4 {[%clk 0:02:59.1]} 6... g5 {[%clk 0:02:50]} 7.
Nfd2 {[%clk 0:02:57.2]} 7... Nf4 {[%clk 0:02:48.9]} 8. exf4 {[%clk 0:02:53.5]}
8... gxh4 {[%clk 0:02:49.6]} 9. h3 {[%clk 0:02:50.7]} 9... e6 {[%clk 0:02:47.2]}
10. Nf3 {[%clk 0:02:37.1]} 10... c5 {[%clk 0:02:46.8]} 11. dxc5 {[%clk
0:02:26.9]} 11... bxc5 {[%clk 0:02:47.7]} 12. Nc3 {[%clk 0:02:20.7]} 12... Qf6
{[%clk 0:02:46.4]} 13. Qd2 {[%clk 0:02:13.9]} 13... a6 {[%clk 0:02:40.8]} 14.
Ne5 {[%clk 0:01:59.6]} 14... h5 {[%clk 0:02:31.2]} 15. O-O-O {[%clk 0:01:51.6]}
15... d5 {[%clk 0:02:30.4]} 16. g3 {[%clk 0:01:23.7]} 16... d4 {[%clk
0:02:12.1]} 17. Rg1 {[%clk 0:00:46.6]} 17... dxc3 {[%clk 0:01:59.8]} 18. Qxc3
{[%clk 0:00:47.5]} 18... Bg7 {[%clk 0:01:55.5]} 19. Qb3 {[%clk 0:00:38.7]} 19...
Qe7 {[%clk 0:01:52.7]} 20. gxh4 {[%clk 0:00:15.7]} 20... Bxe5 {[%clk 0:01:45.8]}
21. fxe5 {[%clk 0:00:16.6]} 21... Nc6 {[%clk 0:01:41.5]} 22. f4 {[%clk
0:00:13.4]} 22... Nd4 {[%clk 0:01:40.7]} 23. Qb6 {[%clk 0:00:06.2]} 23... Rc8
{[%clk 0:01:27.1]} 24. c3 {[%clk 0:00:05.7]} 24... Nb5 {[%clk 0:01:17.2]} 25. a4
{[%clk 0:00:03.7]} 25... Rc6 {[%clk 0:01:07.8]} 26. Bxb5 {[%clk 0:00:01.2]}
26... axb5 {[%clk 0:01:08.2]} 27. Qxb5 {[%clk 0:00:02.1]} 27... Qc7 {[%clk
0:01:04]} 28. Rd6 {[%clk 0:00:02.4]} 28... Ke7 {[%clk 0:01:03.7]} 29. Rgd1
{[%clk 0:00:02.4]} 29... Rb8 {[%clk 0:00:53.2]} 30. Rd7+ {[%clk 0:00:02.5]}
30... Qxd7 {[%clk 0:00:53.7]} 31. Rxd7+ {[%clk 0:00:03.4]} 31... Kxd7 {[%clk
0:00:54.6]} 32. Qd3+ {[%clk 0:00:04.2]} 32... Ke7 {[%clk 0:00:53.5]} 33. Qh7
{[%clk 0:00:04.1]} 33... Rcc8 {[%clk 0:00:51.9]} 34. Qxh5 {[%clk 0:00:04.2]}
34... Rg8 {[%clk 0:00:52.5]} 35. Qh6 {[%clk 0:00:03.1]} 35... Rg1+ {[%clk
0:00:52]} 36. Kc2 {[%clk 0:00:03.3]} 36... Rg6 {[%clk 0:00:52.9]} 37. Qh7 {[%clk
0:00:01.5]} 37... Be4+ {[%clk 0:00:53.4]} 0-1

[Event "Late-Titled-Tuesday-Blitz-April-23-2024"]
[Site "Chess.com"]
[Date "2024.04.23"]
[Round "7"]
[White "Thjop"]
[Black "Jooonaaas1996"]
[Result "1-0"]
[WhiteElo "2570"]
[BlackElo "2422"]
[TimeControl "180+1"]
[EndTime "15:18:36 PDT"]
[Termination "Thjop won on time"]

1. e4 {[%clk 0:03:00.9]} 1... e5 {[%clk 0:02:57.9]} 2. Nf3 {[%clk 0:03:00.4]}
2... Nc6 {[%clk 0:02:58.5]} 3. Bc4 {[%clk 0:02:58.8]} 3... Nf6 {[%clk
0:02:58.2]} 4. d3 {[%clk 0:02:59.1]} 4... Be7 {[%clk 0:02:53.8]} 5. Nbd2 {[%clk
0:02:58.9]} 5... d6 {[%clk 0:02:51.9]} 6. c3 {[%clk 0:02:59.1]} 6... O-O {[%clk
0:02:50.1]} 7. Bb3 {[%clk 0:02:59.4]} 7... a5 {[%clk 0:02:48.3]} 8. Nf1 {[%clk
0:02:58.7]} 8... Bd7 {[%clk 0:02:46.1]} 9. Ng3 {[%clk 0:02:55.6]} 9... b5 {[%clk
0:02:41.4]} 10. a4 {[%clk 0:02:53.4]} 10... b4 {[%clk 0:02:41.1]} 11. h3 {[%clk
0:02:52]} 11... Rb8 {[%clk 0:02:40]} 12. O-O {[%clk 0:02:46.8]} 12... Qc8 {[%clk
0:02:35.6]} 13. Kh2 {[%clk 0:02:43.4]} 13... Qb7 {[%clk 0:02:34.8]} 14. Bc4
{[%clk 0:02:41.1]} 14... Nd8 {[%clk 0:02:14.6]} 15. Qe2 {[%clk 0:02:20.2]} 15...
c5 {[%clk 0:02:04.8]} 16. Nh4 {[%clk 0:02:19.7]} 16... Nxe4 {[%clk 0:01:31.9]}
17. Nxe4 {[%clk 0:02:16.8]} 17... Bxh4 {[%clk 0:01:30.4]} 18. Nxd6 {[%clk
0:02:14.9]} 18... Qc7 {[%clk 0:01:21.6]} 19. Ne4 {[%clk 0:02:04.1]} 19... Be6
{[%clk 0:00:57.9]} 20. Bb5 {[%clk 0:01:43.8]} 20... Be7 {[%clk 0:00:40.3]} 21.
Ng5 {[%clk 0:01:39]} 21... Bxg5 {[%clk 0:00:40]} 22. Bxg5 {[%clk 0:01:38.7]}
22... f6 {[%clk 0:00:40.5]} 23. Be3 {[%clk 0:01:38]} 23... Nf7 {[%clk
0:00:22.9]} 24. Kg1 {[%clk 0:01:31.2]} 24... Nd6 {[%clk 0:00:18.8]} 25. c4
{[%clk 0:01:27.7]} 25... Nf5 {[%clk 0:00:17.9]} 26. Rae1 {[%clk 0:01:24.3]}
26... Rbd8 {[%clk 0:00:17.1]} 27. f4 {[%clk 0:01:23.1]} 27... Bf7 {[%clk
0:00:07.2]} 28. fxe5 {[%clk 0:01:16.7]} 28... Nxe3 {[%clk 0:00:07.1]} 29. Qxe3
{[%clk 0:01:16.4]} 29... fxe5 {[%clk 0:00:07.1]} 30. Qxe5 {[%clk 0:01:12.1]}
30... Qc8 {[%clk 0:00:04.5]} 31. Re3 {[%clk 0:01:04.6]} 31... Kh8 {[%clk
0:00:03.9]} 32. Ref3 {[%clk 0:00:55.2]} 32... Bg6 {[%clk 0:00:02.5]} 33. Rxf8+
{[%clk 0:00:40.1]} 33... Rxf8 {[%clk 0:00:03.4]} 34. Rxf8+ {[%clk 0:00:40.3]}
34... Qxf8 {[%clk 0:00:03.8]} 35. d4 {[%clk 0:00:40.3]} 35... cxd4 {[%clk
0:00:02.7]} 36. Qxd4 {[%clk 0:00:41.2]} 36... h6 {[%clk 0:00:02.6]} 37. c5
{[%clk 0:00:41.2]} 1-0

[Event "Late-Titled-Tuesday-Blitz-April-23-2024"]
[Site "Chess.com"]
[Date "2024.04.23"]
[Round "7"]
[White "SidArun"]
[Black "Boorchess"]
[Result "0-1"]
[WhiteElo "2340"]
[BlackElo "2521"]
[TimeControl "180+1"]
[EndTime "15:18:37 PDT"]
[Termination "Boorchess won by checkmate"]

1. d4 {[%clk 0:03:00.9]} 1... Nf6 {[%clk 0:02:59.6]} 2. Nc3 {[%clk 0:03:01.3]}
2... d5 {[%clk 0:02:57.9]} 3. Bf4 {[%clk 0:03:01.9]} 3... a6 {[%clk 0:02:56.8]}
4. e3 {[%clk 0:03:02]} 4... c5 {[%clk 0:02:56.7]} 5. dxc5 {[%clk 0:03:01.9]}
5... Nc6 {[%clk 0:02:55.5]} 6. a3 {[%clk 0:02:56.6]} 6... g6 {[%clk 0:02:41.9]}
7. Nf3 {[%clk 0:02:51.9]} 7... Bg7 {[%clk 0:02:41]} 8. Nd4 {[%clk 0:02:51]} 8...
O-O {[%clk 0:02:39.1]} 9. Nxc6 {[%clk 0:02:49.3]} 9... bxc6 {[%clk 0:02:39.1]}
10. Be5 {[%clk 0:02:49.7]} 10... Bh6 {[%clk 0:02:34.7]} 11. b4 {[%clk
0:02:44.1]} 11... Nd7 {[%clk 0:02:30.5]} 12. Bf4 {[%clk 0:02:24.3]} 12... Bg7
{[%clk 0:02:30]} 13. Qd2 {[%clk 0:02:24.4]} 13... a5 {[%clk 0:02:29.3]} 14. Rb1
{[%clk 0:02:24.3]} 14... axb4 {[%clk 0:02:29.3]} 15. axb4 {[%clk 0:02:24.7]}
15... Ra3 {[%clk 0:02:25.3]} 16. Nd1 {[%clk 0:02:22]} 16... e5 {[%clk
0:02:17.9]} 17. Bg3 {[%clk 0:02:21.7]} 17... f5 {[%clk 0:02:17.6]} 18. Be2
{[%clk 0:02:13.4]} 18... g5 {[%clk 0:02:07.6]} 19. h4 {[%clk 0:01:55.5]} 19...
f4 {[%clk 0:02:04.1]} 20. Bh2 {[%clk 0:01:55.7]} 20... Nf6 {[%clk 0:01:45.1]}
21. Qc1 {[%clk 0:01:43.2]} 21... Ra7 {[%clk 0:01:33.3]} 22. hxg5 {[%clk
0:01:43.1]} 22... Ne4 {[%clk 0:01:32.3]} 23. exf4 {[%clk 0:01:43]} 23... exf4
{[%clk 0:01:30.5]} 24. Bxf4 {[%clk 0:01:39.8]} 24... Raf7 {[%clk 0:01:16.6]} 25.
g3 {[%clk 0:01:38.7]} 25... Re7 {[%clk 0:01:10.6]} 26. Kf1 {[%clk 0:01:30.4]}
26... d4 {[%clk 0:01:08.7]} 27. Bc4+ {[%clk 0:01:27.7]} 27... Be6 {[%clk
0:01:02.6]} 28. Bxe6+ {[%clk 0:01:20.6]} 28... Rxe6 {[%clk 0:01:02.8]} 29. Rb3
{[%clk 0:01:13.6]} 29... Qd5 {[%clk 0:00:58]} 30. Rh5 {[%clk 0:01:07.3]} 30...
Rfe8 {[%clk 0:00:53.2]} 31. f3 {[%clk 0:00:55.1]} 31... Nf6 {[%clk 0:00:43.8]}
32. Rh2 {[%clk 0:00:28.5]} 32... Re1+ {[%clk 0:00:39.4]} 33. Kg2 {[%clk
0:00:27.9]} 33... Ng4 {[%clk 0:00:30.8]} 34. Rd3 {[%clk 0:00:10]} 34... R8e2+
{[%clk 0:00:28.8]} 35. Kh3 {[%clk 0:00:10.5]} 35... Rxh2+ {[%clk 0:00:28.2]} 36.
Kxg4 {[%clk 0:00:10.3]} 36... Qe6# {[%clk 0:00:28.4]} 0-1

[Event "Late-Titled-Tuesday-Blitz-April-23-2024"]
[Site "Chess.com"]
[Date "2024.04.23"]
[Round "7"]
[White "HajiyevKanan"]
[Black "AlexeiShirov"]
[Result "0-1"]
[WhiteElo "2615"]
[BlackElo "2808"]
[TimeControl "180+1"]
[EndTime "15:18:40 PDT"]
[Termination "AlexeiShirov won on time"]

1. d4 {[%clk 0:03:00.9]} 1... d5 {[%clk 0:02:59.9]} 2. Nf3 {[%clk 0:03:01.6]}
2... Nf6 {[%clk 0:02:59.4]} 3. c4 {[%clk 0:03:02.2]} 3... c6 {[%clk 0:02:59.7]}
4. cxd5 {[%clk 0:03:02.9]} 4... cxd5 {[%clk 0:02:59.9]} 5. Nc3 {[%clk
0:03:03.8]} 5... Nc6 {[%clk 0:02:59]} 6. Bg5 {[%clk 0:03:04]} 6... Ne4 {[%clk
0:02:57.5]} 7. Bf4 {[%clk 0:03:04.4]} 7... Nxc3 {[%clk 0:02:55]} 8. bxc3 {[%clk
0:03:05.3]} 8... g6 {[%clk 0:02:53.9]} 9. e3 {[%clk 0:03:05.1]} 9... Bg7 {[%clk
0:02:53.6]} 10. Bd3 {[%clk 0:02:57.2]} 10... O-O {[%clk 0:02:52.2]} 11. O-O
{[%clk 0:02:57.6]} 11... Bg4 {[%clk 0:02:35.7]} 12. h3 {[%clk 0:02:50.8]} 12...
Bxf3 {[%clk 0:02:34.4]} 13. Qxf3 {[%clk 0:02:51.7]} 13... Rc8 {[%clk 0:02:31.9]}
14. e4 {[%clk 0:02:28]} 14... e5 {[%clk 0:02:29.6]} 15. dxe5 {[%clk 0:02:07.7]}
15... Nxe5 {[%clk 0:02:28.8]} 16. Bxe5 {[%clk 0:02:05.4]} 16... Bxe5 {[%clk
0:02:28.7]} 17. exd5 {[%clk 0:01:55]} 17... Rxc3 {[%clk 0:02:27.9]} 18. Rac1
{[%clk 0:01:55.1]} 18... Rxc1 {[%clk 0:02:15.9]} 19. Rxc1 {[%clk 0:01:56]} 19...
Bd6 {[%clk 0:02:09.8]} 20. Rb1 {[%clk 0:01:32.5]} 20... Qc7 {[%clk 0:01:59.5]}
21. Qe4 {[%clk 0:01:26.7]} 21... Rc8 {[%clk 0:01:52.2]} 22. h4 {[%clk
0:01:16.4]} 22... h5 {[%clk 0:01:46.3]} 23. Qe3 {[%clk 0:01:06.3]} 23... b6
{[%clk 0:01:41.2]} 24. Ba6 {[%clk 0:01:03.5]} 24... Rd8 {[%clk 0:01:38.2]} 25.
Bb5 {[%clk 0:00:42.5]} 25... Qc2 {[%clk 0:01:36.6]} 26. Qb3 {[%clk 0:00:26.6]}
26... Qf5 {[%clk 0:01:35.6]} 27. Qd3 {[%clk 0:00:13]} 27... Qe5 {[%clk
0:01:32.7]} 28. g3 {[%clk 0:00:11.1]} 28... Bc5 {[%clk 0:01:31.6]} 29. Bc6
{[%clk 0:00:10.4]} 29... Rd6 {[%clk 0:01:31.1]} 30. Kg2 {[%clk 0:00:08.4]} 30...
Rf6 {[%clk 0:01:28.4]} 31. Rf1 {[%clk 0:00:03.8]} 31... Qb2 {[%clk 0:01:26.6]}
32. a4 {[%clk 0:00:02.5]} 32... Rxf2+ {[%clk 0:01:25]} 33. Rxf2 {[%clk
0:00:02.8]} 33... Qxf2+ {[%clk 0:01:24.5]} 34. Kh3 {[%clk 0:00:02.8]} 34... Bd6
{[%clk 0:01:21.4]} 35. Qc3 {[%clk 0:00:02.4]} 35... Qf1+ {[%clk 0:01:15.6]} 36.
Kh2 {[%clk 0:00:02.6]} 36... Qf2+ {[%clk 0:01:13.7]} 37. Kh3 {[%clk 0:00:01.8]}
37... Kh7 {[%clk 0:01:08.6]} 38. Qd3 {[%clk 0:00:02.3]} 38... Kh6 {[%clk
0:00:56.9]} 39. Bb5 {[%clk 0:00:01.6]} 39... f6 {[%clk 0:00:53.6]} 40. Bc6
{[%clk 0:00:01.7]} 40... g5 {[%clk 0:00:50.6]} 41. hxg5+ {[%clk 0:00:01.9]}
41... fxg5 {[%clk 0:00:50.3]} 0-1

[Event "Late-Titled-Tuesday-Blitz-April-23-2024"]
[Site "Chess.com"]
[Date "2024.04.23"]
[Round "7"]
[White "TheAlienParty"]
[Black "malakismayil"]
[Result "1-0"]
[WhiteElo "2445"]
[BlackElo "2573"]
[TimeControl "180+1"]
[EndTime "15:18:40 PDT"]
[Termination "TheAlienParty won on time"]

1. c4 {[%clk 0:02:59.5]} 1... e5 {[%clk 0:02:57.7]} 2. Nc3 {[%clk 0:02:58.6]}
2... Nf6 {[%clk 0:02:57.8]} 3. Nf3 {[%clk 0:02:58.3]} 3... Nc6 {[%clk
0:02:57.3]} 4. e4 {[%clk 0:02:57.7]} 4... Bc5 {[%clk 0:02:55.8]} 5. Nxe5 {[%clk
0:02:57.1]} 5... Nxe5 {[%clk 0:02:53.5]} 6. d4 {[%clk 0:02:56.7]} 6... Bd6
{[%clk 0:02:53.7]} 7. f4 {[%clk 0:02:51.2]} 7... Ng6 {[%clk 0:02:49.2]} 8. e5
{[%clk 0:02:48.6]} 8... O-O {[%clk 0:02:45.6]} 9. exd6 {[%clk 0:02:47.4]} 9...
cxd6 {[%clk 0:02:33.1]} 10. d5 {[%clk 0:02:46.3]} 10... b5 {[%clk 0:02:03.9]}
11. Nxb5 {[%clk 0:02:42.4]} 11... Ba6 {[%clk 0:01:51.2]} 12. a4 {[%clk
0:02:38.1]} 12... Ne4 {[%clk 0:01:38.4]} 13. Qd3 {[%clk 0:02:32.3]} 13... Re8
{[%clk 0:01:36]} 14. Be2 {[%clk 0:02:31.6]} 14... Qh4+ {[%clk 0:01:33.8]} 15. g3
{[%clk 0:02:30.2]} 15... Qh3 {[%clk 0:01:20.2]} 16. Qf3 {[%clk 0:02:20.5]} 16...
Bxb5 {[%clk 0:00:55.8]} 17. axb5 {[%clk 0:02:18.7]} 17... Nf6 {[%clk 0:00:56.3]}
18. Be3 {[%clk 0:02:04.9]} 18... Re4 {[%clk 0:00:24.7]} 19. Rxa7 {[%clk
0:01:28.1]} 19... Rae8 {[%clk 0:00:24.2]} 20. Ra3 {[%clk 0:01:27.2]} 20... h5
{[%clk 0:00:08.5]} 21. Kd2 {[%clk 0:01:21.6]} 21... Ng4 {[%clk 0:00:06.8]} 22.
Bf1 {[%clk 0:01:17.3]} 22... Rxe3 {[%clk 0:00:01.2]} 23. Rxe3 {[%clk 0:01:14.2]}
23... Rxe3 {[%clk 0:00:01.1]} 24. Qxe3 {[%clk 0:01:13.3]} 24... Nxe3 {[%clk
0:00:02]} 25. Bxh3 {[%clk 0:01:13]} 25... Nxc4+ {[%clk 0:00:02.5]} 26. Kc3
{[%clk 0:01:12.9]} 26... Nb6 {[%clk 0:00:03.2]} 27. Kd4 {[%clk 0:01:12.6]} 27...
Ne7 {[%clk 0:00:03.4]} 28. Bg2 {[%clk 0:01:09.1]} 28... Nf5+ {[%clk 0:00:02.8]}
29. Kd3 {[%clk 0:01:09]} 29... h4 {[%clk 0:00:02.5]} 30. Be4 {[%clk 0:01:08.3]}
30... Ne7 {[%clk 0:00:02.7]} 31. gxh4 {[%clk 0:01:07.8]} 31... f5 {[%clk
0:00:01.2]} 32. Bf3 {[%clk 0:01:07]} 32... Kf7 {[%clk 0:00:01.9]} 33. h5 {[%clk
0:01:06.2]} 33... Kf6 {[%clk 0:00:02]} 34. Ra1 {[%clk 0:01:05.7]} 34... Nec8
{[%clk 0:00:01.3]} 35. Ra6 {[%clk 0:01:04.7]} 35... Ke7 {[%clk 0:00:01.6]} 36.
Kd4 {[%clk 0:01:04.2]} 36... Kd8 {[%clk 0:00:02]} 37. b4 {[%clk 0:01:03]} 37...
Kc7 {[%clk 0:00:02.6]} 38. Ra2 {[%clk 0:01:02.2]} 38... Kd8 {[%clk 0:00:02.7]}
39. Rg2 {[%clk 0:01:01.7]} 39... Ke7 {[%clk 0:00:01.6]} 40. Rxg7+ {[%clk
0:01:01.3]} 40... Kf6 {[%clk 0:00:02.5]} 41. h6 {[%clk 0:01:01]} 41... Ne7
{[%clk 0:00:02.7]} 42. Rg1 {[%clk 0:00:59.6]} 42... Nbc8 {[%clk 0:00:01.6]} 43.
h7 {[%clk 0:00:59.1]} 1-0